{"text_format":"1","workbook":"xlsx","n_sheets":35,"sheets":["Início","Início2","Início3","Início4","Início5","Início6","Início7","CB","CBD","CB2","CBD2","BD1","BD1D","BD2","BD2D","BD3","BD3D","BD4","BD4D","SAF","SAFD","PWD","PWDD","WES","WESD","DI1","DI1D","DI2","DI2D","DI3","DI3D","DQ1","DQ1D","DQ2","DQ2D"],"not_rendered":{"charts":0,"images":60,"macros":1,"external_links":0,"defined_names":0,"comments":0,"pivot_tables":0},"unopened":[],"bounds":{"document_bytes":16777216,"sheet_cells":100000,"rows_first":2000,"rows_last":500,"rows_between":2000,"halvings":0,"cell_chars":16384,"cell_head_chars":4096},"cells_cut":0,"cells_raw":0,"read":"whole","date_system":"1900"}

{"sheet":"Início","index":0,"n_rows":0,"n_cols":0,"rows_kept":0,"cut":false,"hidden":false,"merged":[]}

{"sheet":"Início2","index":1,"n_rows":0,"n_cols":0,"rows_kept":0,"cut":false,"hidden":false,"merged":[]}

{"sheet":"Início3","index":2,"n_rows":0,"n_cols":0,"rows_kept":0,"cut":false,"hidden":false,"merged":[]}

{"sheet":"Início4","index":3,"n_rows":0,"n_cols":0,"rows_kept":0,"cut":false,"hidden":false,"merged":[]}

{"sheet":"Início5","index":4,"n_rows":0,"n_cols":0,"rows_kept":0,"cut":false,"hidden":false,"merged":[]}

{"sheet":"Início6","index":5,"n_rows":0,"n_cols":0,"rows_kept":0,"cut":false,"hidden":false,"merged":[]}

{"sheet":"Início7","index":6,"n_rows":0,"n_cols":0,"rows_kept":0,"cut":false,"hidden":false,"merged":[]}

{"sheet":"CB","index":7,"n_rows":0,"n_cols":0,"rows_kept":0,"cut":false,"hidden":false,"merged":[]}

{"sheet":"CBD","index":8,"n_rows":38,"n_cols":9,"rows_kept":38,"cut":false,"hidden":false,"merged":[]}
[]
[]
[]
[]
[]
[]
[]
[]
[]
[]
[]
[]
[]
[]
[]
[]
[]
[]
[]
[]
[]
[]
[]
[]
[]
[]
[]
[]
[null,null,null,null,null,null,null,null,{"$f":"IFERROR(INDEX(I30:I38,MATCH(H30,G30:G38,0)),\"\")","v":"Altura do escoamento no vertedouro "}]
["y1",null,"y2",null,null,null,"Y0","Y0","Altura do escoamento no vertedouro "]
["v1",null,"v2",null,null,null,"V0",null,"Velocidade de escoamento no vertedouro"]
["z1",null,"Fr",null,null,null,"Z0",null,"Cota do vertedouro"]
["Q",null,null,null,null,null,"Q",null,"Vazão"]
["b",null,null,null,null,null,"b",null,"Largura do canal"]
[null,null,null,null,null,null,"Z1",null,"Cota da bacia de dissipação"]
[null,null,null,null,null,null,"Y1",null,"Altura do escoamento a montante do ressalto"]
[null,null,null,null,null,null,"V1",null,"Velocidade de escoemento a montante do ressalto"]
[null,null,null,null,null,null,"Fr1",null,"Número de Froude do escoamento a montante do ressalto"]

{"sheet":"CB2","index":9,"n_rows":0,"n_cols":0,"rows_kept":0,"cut":false,"hidden":false,"merged":[]}

{"sheet":"CBD2","index":10,"n_rows":41,"n_cols":9,"rows_kept":41,"cut":false,"hidden":false,"merged":[]}
[]
[]
[]
[]
[]
[]
[]
[]
[]
[]
[]
[]
[]
[]
[]
[]
[]
[]
[]
[]
[]
[]
[]
[]
[]
[]
[]
[]
[null,null,null,null,null,null,null,null,{"$f":"IFERROR(INDEX(I30:I41,MATCH(H30,G30:G41,0)),\"\")","v":"Altura do escoamento no vertedouro "}]
["y0",null,"y2",null,null,null,"Y0","Y0","Altura do escoamento no vertedouro "]
["v0",null,"v2",null,null,null,"V0",null,"Velocidade de escoamento no vertedouro"]
["z0",null,"z2",null,null,null,"Z0",null,"Cota do vertedouro"]
["Q",null,"fr2",null,null,null,"Q",null,"Vazão"]
["b",null,"y1",null,null,null,"b",null,"Largura do canal"]
["y3",null,"v1",null,null,null,"Y3",null,"Altura do escoamento no canal após a bacia de dissipação"]
["v3",null,"z1",null,null,null,"V3",null,"Velocidade de escoamento no canal após a bacia de dissipação"]
["z3",null,"fr1",null,null,null,"Z3",null,"Cota do canal após a bacia de dissipação"]
[null,null,null,null,null,null,"Y1",null,"Altura do escoamento a montante do ressalto"]
[null,null,null,null,null,null,"V1",null,"Velocidade de escoemento a montante do ressalto"]
[null,null,null,null,null,null,"Z1",null,"Cota da bacia de dissipação"]
[null,null,null,null,null,null,"Fr1",null,"Número de Froude do escoamento a montante do ressalto"]

{"sheet":"BD1","index":11,"n_rows":0,"n_cols":0,"rows_kept":0,"cut":false,"hidden":false,"merged":[]}

{"sheet":"BD1D","index":12,"n_rows":37,"n_cols":9,"rows_kept":37,"cut":false,"hidden":false,"merged":[]}
[]
[]
[]
[]
[]
[]
[]
[]
[]
[]
[]
[]
[]
[]
[]
[]
[]
[]
[]
[]
[]
[]
[]
[]
[]
[]
[]
[]
[null,null,null,null,null,null,null,null,{"$f":"IFERROR(INDEX(I30:I37,MATCH(H30,G30:G37,0)),\"\")","v":"Altura do escoamento a montante do ressalto"}]
["y1",null,"y2",null,null,null,"Y1","Y1","Altura do escoamento a montante do ressalto"]
["v1",null,"v2",null,null,null,"V1",null,"Velocidade do escoamento a montante do ressalto"]
[null,null,"Fr",null,null,null,"Y2",null,"Altura do escoamento a jusante do ressalto"]
[null,null,"yr",null,null,null,"V2",null,"Velocidade do escoamento a jusante do ressalto"]
[null,null,"Li",null,null,null,"Fr2",null,"Número de Froud do escoamento a jusante do ressalto"]
[null,null,"Ԑ",null,null,null,"Yr",null,"Altura do ressalto hidráulico"]
[null,null,null,null,null,null,"Li",null,"Comprimento do ressalto hidráulico"]
[null,null,null,null,null,null,"Ԑ",null,"Energia dissipada"]

{"sheet":"BD2","index":13,"n_rows":0,"n_cols":0,"rows_kept":0,"cut":false,"hidden":false,"merged":[]}

{"sheet":"BD2D","index":14,"n_rows":37,"n_cols":9,"rows_kept":37,"cut":false,"hidden":false,"merged":[]}
[]
[]
[]
[]
[]
[]
[]
[]
[]
[]
[]
[]
[]
[]
[]
[]
[]
[]
[]
[]
[]
[]
[]
[]
[]
[]
[]
[]
[null,null,null,null,null,null,null,null,{"$f":"IFERROR(INDEX(I30:I37,MATCH(H30,G30:G37,0)),\"\")","v":"Altura do escoamento a montante do ressalto"}]
["y1",null,"y2",null,"bq",null,"Y1","Y1","Altura do escoamento a montante do ressalto"]
["v1",null,"v2",null,"sta",null,"V1",null,"Velocidade do escoamento a montante do ressalto"]
[null,null,"Fr2",null,"stle",null,"Y2",null,"Altura do escoamento a jusante do ressalto"]
[null,null,"yr",null,null,null,"V2",null,"Velocidade do escoamento a jusante do ressalto"]
[null,null,"Lii",null,null,null,"Fr2",null,"Número de Froud do escoamento a jusante do ressalto"]
[null,null,"Ԑ",null,null,null,"Yr",null,"Altura do ressalto hidráulico"]
[null,null,null,null,null,null,"Lii",null,"Comprimento do ressalto hidráulico"]
[null,null,null,null,null,null,"Ԑ",null,"Energia dissipada"]

{"sheet":"BD3","index":15,"n_rows":0,"n_cols":0,"rows_kept":0,"cut":false,"hidden":false,"merged":[]}

{"sheet":"BD3D","index":16,"n_rows":37,"n_cols":9,"rows_kept":37,"cut":false,"hidden":false,"merged":[]}
[]
[]
[]
[]
[]
[]
[]
[]
[]
[]
[]
[]
[]
[]
[]
[]
[]
[]
[]
[]
[]
[]
[]
[]
[]
[]
[]
[]
[null,null,null,null,null,null,null,null,{"$f":"IFERROR(INDEX(I30:I37,MATCH(H30,G30:G37,0)),\"\")","v":"Altura do escoamento a montante do ressalto"}]
["y1",null,"y2",null,"bq",null,"Y1","Y1","Altura do escoamento a montante do ressalto"]
["v1",null,"v2",null,"baa",null,"V1",null,"Velocidade do escoamento a montante do ressalto"]
[null,null,"Fr2",null,"bale",null,"Y2",null,"Altura do escoamento a jusante do ressalto"]
[null,null,"yr",null,"deb",null,"V2",null,"Velocidade do escoamento a jusante do ressalto"]
[null,null,"Lii",null,"sta",null,"Fr2",null,"Número de Froud do escoamento a jusante do ressalto"]
[null,null,"Ԑ",null,null,null,"Yr",null,"Altura do ressalto hidráulico"]
[null,null,null,null,null,null,"Liii",null,"Comprimento do ressalto hidráulico"]
[null,null,null,null,null,null,"Ԑ",null,"Energia dissipada"]

{"sheet":"BD4","index":17,"n_rows":0,"n_cols":0,"rows_kept":0,"cut":false,"hidden":false,"merged":[]}

{"sheet":"BD4D","index":18,"n_rows":37,"n_cols":9,"rows_kept":37,"cut":false,"hidden":false,"merged":[]}
[]
[]
[]
[]
[]
[]
[]
[]
[]
[]
[]
[]
[]
[]
[]
[]
[]
[]
[]
[]
[]
[]
[]
[]
[]
[]
[]
[]
[null,null,null,null,null,null,null,null,{"$f":"IFERROR(INDEX(I30:I37,MATCH(H30,G30:G37,0)),\"\")","v":"Altura do escoamento a montante do ressalto"}]
["y1",null,"y2",null,"bqa",null,"Y1","Y1","Altura do escoamento a montante do ressalto"]
["v1",null,"v2",null,"bql",null,"V1",null,"Velocidade do escoamento a montante do ressalto"]
[null,null,"Fr2",null,"bqe",null,"Y2",null,"Altura do escoamento a jusante do ressalto"]
[null,null,"yr",null,"sta",null,"V2",null,"Velocidade do escoamento a jusante do ressalto"]
[null,null,"Lii",null,null,null,"Fr2",null,"Número de Froud do escoamento a jusante do ressalto"]
[null,null,"Ԑ",null,null,null,"Yr",null,"Altura do ressalto hidráulico"]
[null,null,null,null,null,null,"Liv",null,"Comprimento do ressalto hidráulico"]
[null,null,null,null,null,null,"Ԑ",null,"Energia dissipada"]

{"sheet":"SAF","index":19,"n_rows":0,"n_cols":0,"rows_kept":0,"cut":false,"hidden":false,"merged":[]}

{"sheet":"SAFD","index":20,"n_rows":47,"n_cols":9,"rows_kept":47,"cut":false,"hidden":false,"merged":[]}
[]
[]
[]
[]
[]
[]
[]
[]
[]
[]
[]
[]
[]
[]
[]
[]
[]
[]
[]
[]
[]
[]
[]
[]
[]
[]
[]
[]
[null,null,null,null,null,null,null,null,{"$f":"IFERROR(INDEX(I30:I47,MATCH(H30,G30:G47,0)),\"\")","v":"Diâmetro da tubulação de saída"}]
["d",null,"wb1",null,"bqa",null,"D","D","Diâmetro da tubulação de saída"]
["q",null,"wb2",null,"bqle",null,"Q",null,"Vazão"]
["z0",null,"wb3",null,"n1",null,"Z0",null,"Cota da tubulação de saída"]
["y1",null,"lt",null,"baa",null,"Y1",null,"Altura do escoamento a montande do ressalto"]
["v1",null,"lb",null,"bale",null,"V1",null,"Velocidade do escoamento a montande do ressalto"]
["z1",null,"ls",null,"dbqba",null,"Z1",null,"Cota da bacia de dissipação"]
["z",null,"lsaf",null,"n2",null,"z",null,"Alargamento da bacia (z:1) / z = 0 (bacia retangular)"]
["st",null,null,null,"folga",null,"St",null,"Inclinação da transição de entrada na bacia (St:1)"]
["ss",null,null,null,"st",null,"Ss",null,"Inclinação à saída da bacia (Ss:1)"]
["s0",null,null,null,null,null,"S0",null,"Inclinação da tubulação de saída (S0:1)"]
[null,null,null,null,null,null,"Wb1",null,"Largura da bacia na seção dos blocos de queda"]
[null,null,null,null,null,null,"Wb2",null,"Largura da bacia na seção dos blocos amortecedores"]
[null,null,null,null,null,null,"Wb3",null,"Largura da bacia na seção da soleira terminal"]
[null,null,null,null,null,null,"Lt",null,"Comprimento de transição"]
[null,null,null,null,null,null,"Lb",null,"Comprimento da bacia de dissipação"]
[null,null,null,null,null,null,"Ls",null,"Comprimento da zona de saída da bacia"]
[null,null,null,null,null,null,"LSAF",null,"Comprimento total da estrutura"]
[null,null,null,null,null,null,"Folga",null,"Distância entre a parede lateral da estrutura e os blocos amortecedores"]

{"sheet":"PWD","index":21,"n_rows":0,"n_cols":0,"rows_kept":0,"cut":false,"hidden":false,"merged":[]}

{"sheet":"PWDD","index":22,"n_rows":40,"n_cols":9,"rows_kept":40,"cut":false,"hidden":false,"merged":[]}
[]
[]
[]
[]
[]
[]
[]
[]
[]
[]
[]
[]
[]
[]
[]
[]
[]
[]
[]
[]
[]
[]
[]
[]
[]
[]
[]
[]
[null,null,null,null,null,null,null,null,{"$f":"IFERROR(INDEX(I30:I40,MATCH(H30,G30:G40,0)),\"\")","v":"Diâmetro da tubulação de descarga"}]
["d",null,"l1",null,null,null,"D","D","Diâmetro da tubulação de descarga"]
[null,null,"l2",null,null,null,"L1",null,"Comprimento L1 (Verifique a imagem na descrição)"]
[null,null,"l3",null,null,null,"L2",null,"Comprimento L2 (Verifique a imagem na descrição)"]
[null,null,"l4",null,null,null,"L3",null,"Comprimento L3 (Verifique a imagem na descrição)"]
[null,null,"l5",null,null,null,"L4",null,"Comprimento L4 (Verifique a imagem na descrição)"]
[null,null,"l6",null,null,null,"L5",null,"Comprimento L5 (Verifique a imagem na descrição)"]
[null,null,"h1",null,null,null,"L6",null,"Largura final da bacia"]
[null,null,"h2",null,null,null,"h1",null,"Altura da soleira horizontal"]
[null,null,"vmax",null,null,null,"h2",null,"Altura das paredes laterais e da soleira terminal"]
[null,null,"hmax",null,null,null,"Vmáx",null,"Velocidade inicial máxima recomendada"]
[null,null,null,null,null,null,"Hmáx",null,"Carga hidráulica máxima recomendada"]

{"sheet":"WES","index":23,"n_rows":0,"n_cols":0,"rows_kept":0,"cut":false,"hidden":false,"merged":[]}

{"sheet":"WESD","index":24,"n_rows":34,"n_cols":9,"rows_kept":34,"cut":false,"hidden":false,"merged":[]}
[]
[]
[]
[]
[]
[]
[]
[]
[]
[]
[]
[]
[]
[]
[]
[]
[]
[]
[]
[]
[]
[]
[]
[]
[]
[]
[]
[]
[null,null,null,null,null,null,null,null,{"$f":"IFERROR(INDEX(I30:I34,MATCH(H30,G30:G34,0)),\"\")","v":"Diâmetro da tubulação de descarga"}]
["d",null,"l1",null,null,null,"D","D","Diâmetro da tubulação de descarga"]
[null,null,"l2",null,null,null,"L1",null,"Comprimento da bacia"]
[null,null,"hmax",null,null,null,"L2",null,"Largura da bacia"]
[null,null,"vmax",null,null,null,"Hmáx",null,"Desnível máximo recomendado"]
[null,null,null,null,null,null,"Vmáx",null,"Velocidade máxima de saída da tubulação recomendada"]

{"sheet":"DI1","index":25,"n_rows":0,"n_cols":0,"rows_kept":0,"cut":false,"hidden":false,"merged":[]}

{"sheet":"DI1D","index":26,"n_rows":59,"n_cols":22,"rows_kept":59,"cut":false,"hidden":false,"merged":[]}
[]
[]
[]
[]
[]
[]
[]
[]
[]
[]
[]
[]
[]
[]
[]
[]
[]
[]
[]
[]
[]
[]
[]
[]
[]
[]
[]
[]
[null,"D"]
[null,null,"H",{"$f":"VLOOKUP($C$29,$F$31:$V$39,4,FALSE)","v":{"$error":"#N/A"}},null,"D (pol)","D (m)","Q (m³/s)","H (m)","L (m)","W (m)","a (m)","b (m)","c (m)","d (m)","e (m)","f (m)","g (m)","tw (m)","tf (m)","tb (m)","tp (m)"]
[null,null,"L",{"$f":"VLOOKUP($C$29,$F$31:$V$39,5,FALSE)","v":{"$error":"#N/A"}},null,18,0.46,0.6,1.3,2.25,1.7,1,1.25,0.7,0.3,0.15,0.45,0.65,0.15,0.15,0.15,0.15]
[null,null,"W",{"$f":"VLOOKUP($C$29,$F$31:$V$39,6,FALSE)","v":{"$error":"#N/A"}},null,24,0.61,1.1000000000000001,1.6,2.75,2,1.2,1.55,0.8,0.4,0.15,0.6,0.75,0.15,0.15,0.15,0.15]
[null,null,"a",{"$f":"VLOOKUP($C$29,$F$31:$V$39,7,FALSE)","v":{"$error":"#N/A"}},null,30,0.76,1.7,1.9,3.25,2.4500000000000002,1.4,1.85,1,0.45,0.2,0.75,0.9,0.15,0.15,0.2,0.2]
[null,null,"b",{"$f":"VLOOKUP($C$29,$F$31:$V$39,8,FALSE)","v":{"$error":"#N/A"}},null,36,0.91,2.4,2.2000000000000002,3.75,2.8,1.6,2.15,1.1499999999999999,0.5,0.2,0.9,1.05,0.2,0.2,0.2,0.2]
[null,null,"c",{"$f":"VLOOKUP($C$29,$F$31:$V$39,9,FALSE)","v":{"$error":"#N/A"}},null,42,1.07,3.3,2.4500000000000002,4.25,3.2,1.85,2.4500000000000002,1.35,0.55000000000000004,0.25,0.9,1.2,0.2,0.2,0.25,0.2]
[null,null,"d",{"$f":"VLOOKUP($C$29,$F$31:$V$39,10,FALSE)","v":{"$error":"#N/A"}},null,48,1.22,4.3,2.75,4.8,3.6,2.0499999999999998,2.7,1.5,0.6,0.25,0.9,1.35,0.25,0.25,0.25,0.2]
[null,null,"e",{"$f":"VLOOKUP($C$29,$F$31:$V$39,11,FALSE)","v":{"$error":"#N/A"}},null,54,1.37,5.4,3,5.3,3.95,2.25,3.05,1.65,0.65,0.3,0.9,1.5,0.25,0.25,0.25,0.2]
[null,null,"f",{"$f":"VLOOKUP($C$29,$F$31:$V$39,12,FALSE)","v":{"$error":"#N/A"}},null,60,1.52,6.7,3.3,5.8,4.3499999999999996,2.4500000000000002,3.35,1.8,0.75,0.3,0.9,1.65,0.3,0.3,0.3,0.2]
[null,null,"g",{"$f":"VLOOKUP($C$29,$F$31:$V$39,13,FALSE)","v":{"$error":"#N/A"}},null,72,1.83,9.6,3.75,6.7,5,2.8,3.9,2.1,0.85,0.4,0.9,1.9,0.3,0.3,0.3,0.2]
[null,null,"tw",{"$f":"VLOOKUP($C$29,$F$31:$V$39,14,FALSE)","v":{"$error":"#N/A"}}]
[null,null,"tf",{"$f":"VLOOKUP($C$29,$F$31:$V$39,15,FALSE)","v":{"$error":"#N/A"}}]
[null,null,"tb",{"$f":"VLOOKUP($C$29,$F$31:$V$39,16,FALSE)","v":{"$error":"#N/A"}}]
[null,null,"tp",{"$f":"VLOOKUP($C$29,$F$31:$V$39,17,FALSE)","v":{"$error":"#N/A"}}]
[null,null,"Qmáx",{"$f":"VLOOKUP($C$29,$F$31:$V$39,3,FALSE)","v":{"$error":"#N/A"}},null,null,null,null,null,null,null,"H",{"$f":"IFERROR(INDEX(M45:M59,MATCH(L44,K45:K59,0)),\"\")","v":"Altura inicial da bacia"}]
[null,null,null,null,null,"18 pol / 0,46 m",null,false,null,null,"H",null,"Altura inicial da bacia"]
[null,null,null,null,null,"24 pol / 0,61 m",null,false,null,null,"L",null,"Comprimento da soleira da bacia"]
[null,null,null,null,null,"30 pol / 0,76 m ",null,false,null,null,"W",null,"Largura da bacia"]
[null,null,null,null,null,"36 pol / 0,91 m",null,false,null,null,"a",null,"Comprimento da viga de cobertura superior"]
[null,null,null,null,null,"42 pol / 1,07 m ",null,false,null,null,"b",null,"Comprimento da bacia sem cobertura "]
[null,null,null,null,null,"48 pol / 1,22 m",null,false,null,null,"c",null,"Altura final da bacia"]
[null,null,null,null,null,"54 pol / 1,37 m",null,false,null,null,"d",null,"Desnível da soleira em relação a tubulação"]
[null,null,null,null,null,"60 pol / 1,52 m",null,true,null,null,"e",null,"Espessura da viga de cobertura superior "]
[null,null,null,null,null,"72 pol / 1,83 m",null,false,null,null,"f",null,"Comprimento dos muros de ala"]
[null,null,null,null,null,null,null,null,null,null,"g",null,"Altura da viga transversal"]
[null,null,null,null,null,null,null,null,null,null,"tw",null,"Espessura das paredes laterais da bacia "]
[null,null,null,null,null,null,null,null,null,null,"tf",null,"Espessura da soleira da bacia"]
[null,null,null,null,null,null,null,null,null,null,"tb",null,"Espessura da parte vertical da viga"]
[null,null,null,null,null,null,null,null,null,null,"tp",null,"Espessura da parte horizontal da viga"]
[null,null,null,null,null,null,null,null,null,null,"Qmáx",null,"Vazão máxima recomendada"]

{"sheet":"DI2","index":27,"n_rows":0,"n_cols":0,"rows_kept":0,"cut":false,"hidden":false,"merged":[]}

{"sheet":"DI2D","index":28,"n_rows":38,"n_cols":8,"rows_kept":38,"cut":false,"hidden":false,"merged":[]}
[]
[]
[]
[]
[]
[]
[]
[]
[]
[]
[]
[]
[]
[]
[]
[]
[]
[]
[]
[]
[]
[]
[]
[]
[]
[]
[]
[]
[null,null,null,null,null,null,"Q",{"$f":"IFERROR(INDEX(H30:H34,MATCH(G29,G30:G34,0)),\"\")","v":""}]
["Q",null,"v0"]
["b",null,"hb"]
["H",null,"tb"]
["z",null,"bb"]
[null,null,"leb"]
[null,null,"deb"]
[null,null,"aml"]
[null,null,"cr"]
[null,null,"nf"]

{"sheet":"DI3","index":29,"n_rows":0,"n_cols":0,"rows_kept":0,"cut":false,"hidden":false,"merged":[]}

{"sheet":"DI3D","index":30,"n_rows":37,"n_cols":7,"rows_kept":37,"cut":false,"hidden":false,"merged":[]}
[]
[]
[]
[]
[]
[]
[]
[]
[]
[]
[]
[]
[]
[]
[]
[]
[]
[]
[]
[]
[]
[]
[]
[]
[]
[]
[]
[]
[null,null,null,null,null,"Q",{"$f":"IFERROR(INDEX(G30:G37,MATCH(F29,F30:F37,0)),\"\")","v":"Vazão de descarga"}]
["d",null,"d50",null,null,"Q","Vazão de descarga"]
["q",null,"lt",null,null,"D","Diâmetro da tubulação de descarga"]
["hj",null,"wt1",null,null,"Hj","Altura do escoamento à jusante do enrocamento"]
[null,null,"wt2",null,null,"D50","Diâmetro médio do material utilizado no enrocamento"]
[null,null,"et",null,null,"LT","Comprimento do tapete de enrocamento"]
[null,null,null,null,null,"WT1","Largura do enrocamento no início da estrutura"]
[null,null,null,null,null,"WT2","Largura do enrocamento no fim da estrutura"]
[null,null,null,null,null,"E","Espessura do tapete de enrocamento"]

{"sheet":"DQ1","index":31,"n_rows":0,"n_cols":0,"rows_kept":0,"cut":false,"hidden":false,"merged":[]}

{"sheet":"DQ1D","index":32,"n_rows":37,"n_cols":7,"rows_kept":37,"cut":false,"hidden":false,"merged":[]}
[]
[]
[]
[]
[]
[]
[]
[]
[]
[]
[]
[]
[]
[]
[]
[]
[]
[]
[]
[]
[]
[]
[]
[]
[]
[]
[]
[]
[null,null,null,null,null,"Q",{"$f":"IFERROR(INDEX(G30:G37,MATCH(F29,F30:F37,0)),\"\")","v":"Vazão de escoamento"}]
["q",null,"L1",null,null,"Q","Vazão de escoamento"]
["b",null,"L2",null,null,"b","Largura da bacia de dissipação por queda"]
["hd",null,"y1",null,null,"Hd","Altura da queda"]
[null,null,"y2",null,null,"L1","Comprimento entre a parede de queda e o início do ressalto"]
[null,null,"y3",null,null,"L2","Comprimento do ressalto hidráulico"]
[null,null,null,null,null,"Y1","Altura do escoamento a montante do ressalto"]
[null,null,null,null,null,"Y2","Altura do escoamento a jusante do ressalto"]
[null,null,null,null,null,"Y3","Altura da água abaixo da zona arejada"]

{"sheet":"DQ2","index":33,"n_rows":0,"n_cols":0,"rows_kept":0,"cut":false,"hidden":false,"merged":[]}

{"sheet":"DQ2D","index":34,"n_rows":38,"n_cols":7,"rows_kept":38,"cut":false,"hidden":false,"merged":[]}
[]
[]
[]
[]
[]
[]
[]
[]
[]
[]
[]
[]
[]
[]
[]
[]
[]
[]
[]
[]
[]
[]
[]
[]
[]
[]
[]
[]
[null,null,null,null,null,"Q",{"$f":"IFERROR(INDEX(G30:G38,MATCH(F29,F30:F38,0)),\"\")","v":"Vazão de escoamento"}]
["q",null,"Nd",null,null,"Q","Vazão de escoamento"]
["b",null,"Ld",null,null,"b","Largura da bacia de dissipação por queda"]
["h",null,"L",null,null,"H","Altura total das quedas sucessivas"]
[null,null,"ΔH",null,null,"Hd","Altura de cada degrau"]
[null,null,"Ɛ",null,null,"Nd","Número de degraus"]
[null,null,null,null,null,"Ld","Comprimento de cada degrau"]
[null,null,null,null,null,"L","Comprimento total da escada de dissipação"]
[null,null,null,null,null,"ΔH","Perda de carga"]
[null,null,null,null,null,"Ɛ","Porcentagem de energia dissipada pela estrutura"]